Cogmind - Beta 13 @@@ ROGUE MODE // 2024.04.03 @ 08:07:29 Player: DiscountHorde Result: Destroyed by SP-DMT(R) with Subdweller Machine Gun Performance ------------- Evolutions (0) 0 Regions Visited (2) 400 Robots Destroyed (6) 30 Value Destroyed (83) 83 Prototype IDs (0) 0 Alien Tech Used (0) 0 Bonus (0) 0 TOTAL SCORE: 513 Bonus ------- None Cogmind --------- Core Integrity 0/250 Matter 272/300 Energy 97/100 System Corruption 0% Temperature Cool (15) Movement Rolling (160) Ox4 Location -10/Subcaves Parts ------- > --- POWER (1) -------- (None) > --- PROPULSION (2) --- Compact Wheel > --- UTILITY (2) ------ Huge Storage Unit > --- WEAPON (2) ------- (None) > --- INVENTORY (25) --- Aluminum Leg Compact Wheel Large Storage Unit Visual Processing Unit ECM Suite ECM Suite Scrap Shield Tractor Beam EM Pulse Gun Assault Rifle Peak State ------------ > --- POWER ------------ Ion Engine > --- PROPULSION ------- Wheel Compact Wheel > --- UTILITY ---------- Large Storage Unit ECM Suite > --- WEAPON ----------- Assault Rifle Light Assault Rifle > --- INVENTORY -------- Light Ion Engine Aluminum Leg Compact Wheel Compact Wheel Large Storage Unit Huge Storage Unit ECM Suite Tractor Beam EM Pulse Gun Grenade Launcher [Rating: 8] Favorites ----------- Power Ion Engine Engine Ion Engine Propulsion Wheel Wheel Wheel Utility Huge Storage Unit Device Structural Scanner Storage Huge Storage Unit Weapon Light Assault Rifle Energy Gun EM Pulse Gun Ballistic Gun Light Assault Rifle Launcher Grenade Launcher Build | -11 -10 -10 ------- Run | Yrd Mat Sub Slots Evolved . | . . . Power . | . . . Propulsion . | . . . Utility . | . . . Weapon . | . . . Parts Attached 18 | 9 6 3 Power 2 | 1 . 1 Engine 2 | 1 . 1 Core . | . . . Reactor . | . . . Propulsion 4 | 3 . 1 Treads . | . . . Leg . | . . . Wheel 4 | 3 . 1 Hover . | . . . Flight . | . . . Utility 7 | 2 4 1 Device 4 | 1 2 1 Storage 3 | 1 2 . Processor . | . . . Hackware . | . . . Protection . | . . . Artifact . | . . . Weapon 5 | 3 2 . Energy Gun 2 | 1 1 . Energy Cannon . | . . . Ballistic Gun 2 | 2 . . Ballistic Cannon . | . . . Launcher 1 | . 1 . Special Weapon . | . . . Impact Weapon . | . . . Slashing Weapon . | . . . Piercing Weapon . | . . . Special Melee Weapon . | . . . Unidentified Prototypes . | . . . Parts Lost 7 | . . 7 Power 2 | . . 2 Propulsion 2 | . . 2 Utility 1 | . . 1 Weapon 2 | . . 2 Highest Loss Streak 7 | . . 7 To Critical Strikes 1 | . . 1 Average Slot Usage (%) 98 | . 100 91 Engine 13 | . 14 10 Wheel 28 | . 28 28 Device 13 | . 14 12 Storage 14 | . 14 14 Energy Gun 6 | . 7 . Ballistic Gun 18 | . 19 14 Launcher 2 | . . 10 Naked Turns . | . . . Heaviest Build 90 | 14 90 90 Greatest Support 26 | 26 26 26 Greatest Overweight (x) 8 | 1 3 8 Average Overweight (x) 2 | . 2 3 Largest Inventory Capacity 25 | 8 25 25 Average Capacity 20 | 6 22 25 Most Carried 13 | 7 11 13 Average Carried 8 | 3 9 12 Final Capacity 25 | 8 25 25 Final Carried 11 | 5 11 11 Class Distribution -------------------- 100% | Mutant Dominant Class ---------------- Mutant | -10/Materials Mutant | -10/Subcaves Resources | -11 -10 -10 ----------- Run | Yrd Mat Sub Matter Collected 360 | 290 70 . Remotely 89 | 89 . . Salvage Created 263 | 73 190 . Parts 17 | 3 14 . Haulers Intercepted . | . . . Recyclers Shooed . | . . . Parts Field Recycled . | . . . Retrieved Matter . | . . . Parts Self-Destructed 1 | . . 1 Prevented . | . . . Kills | -11 -10 -10 ------- Run | Yrd Mat Sub Combat Hostiles Destroyed 1 | . 1 . Guns 1 | . 1 . Classes Destroyed 4 | 1 3 . Builder 1 | . 1 . Recycler 2 | 1 1 . Watcher 2 | . 2 . Grunt 1 | . 1 . Best Kill Streak 2 | 1 2 . Combat Bots Only 1 | . 1 . Max Kills in Single Turn 1 | 1 1 . Gunslinging . | . . . Exploded . | . . . Melee . | . . . Uniques/NPCs Destroyed . | . . . Combat | -11 -10 -10 -------- Run | Yrd Mat Sub Hostile Shots Fired 49 | . 6 43 Missed 14 | . 4 10 Damage Taken 752 | . 23 729 Core 269 | . . 269 Absorbed by Shields . | . . . Core Remaining (%) 100 | 100 . . Volleys Fired 24 | 7 16 1 Largest 2 | 1 2 2 Hottest 60 | 40 60 50 Shots Fired 41 | 7 32 2 Gun 39 | 7 31 1 Cannon . | . . . Launcher 2 | . 1 1 Special . | . . . Kinetic 20 | . 19 1 Thermal . | . . . Explosive 2 | . 1 1 Electromagnetic 19 | 7 12 . Robot Hit Streak 13 | 2 13 9 Robot Miss Streak 3 | 2 3 . Penetration Max . | . . . Secondary Targets . | . . . Shots Hit Robots 27 | 4 21 2 Core Hits 14 | 2 9 3 Critical Kills . | . . . Critical Parts Destroyed . | . . . Critical Strikes . | . . . Melee Attacks . | . . . Impact . | . . . Slashing . | . . . Piercing . | . . . Sneak Attacks . | . . . Combat Hostiles . | . . . Follow-up Attacks . | . . . Damage Inflicted 626 | 80 259 287 Guns 314 | 53 253 8 Cannons . | . . . Explosions 306 | 27 . 279 Melee . | . . . Ramming 6 | . 6 . Kinetic 93 | . 85 8 Thermal 27 | 27 . . Explosive 279 | . . 279 Electromagnetic 221 | 53 168 . Impact . | . . . Slashing . | . . . Piercing . | . . . Highest Corruption . | . . . Average Corruption . | . . . Corruption Purged . | . . . Corruption Blocked . | . . . Overload Shots . | . . . Overflow Damage . | . . . Projectiles . | . . . Explosions . | . . . Melee . | . . . Knockbacks . | . . . Impact . | . . . Kinetic . | . . . Secondary . | . . . Self-Inflicted Damage 25 | . 3 22 Shots 1 | . . 1 Rammed 1 | . 1 . Targets Rammed 1 | . 1 . Kicked . | . . . Crushed . | . . . Highest Temperature 52 | 15 52 3 Average Temperature 18 | 10 19 3 Received Heat Transfer 174 | . 12 162 Siege Activations . | . . . Robots Corrupted . | . . . Combat Hostiles . | . . . Parts Fried 1 | . 1 . Impact Corruptions . | . . . Robots Melted . | . . . Combat Hostiles . | . . . Parts Melted . | . . . Heat Transferred 50 | 50 . . Parts Sabotaged . | . . . Parts Stolen . | . . . Parts Stripped . | . . . Power Chain Reactions 1 | 1 . . Alert | -11 -10 -10 ------- Run | Yrd Mat Sub Peak Influence 88 | 5 88 . Initial 3 | . 3 . Average 30 | 3 37 . Maximum Alert Level . | . . . Low Security (%) 100 | 100 100 . Level 1 . | . . . Level 2 . | . . . Level 3 . | . . . Level 4 . | . . . Level 5 . | . . . High Security . | . . . Max Security . | . . . Squads Dispatched 1 | . 1 . Investigation 1 | . 1 . Extermination . | . . . Reinforcement . | . . . Assault . | . . . Garrison . | . . . Intercept . | . . . Searches Triggered . | . . . Construction Impeded . | . . . Haulers Reinforced . | . . . Active Scanning Responses . | . . . Cargo Convoy Interrupts . | . . . Stealth | -11 -10 -10 --------- Run | Yrd Mat Sub Distress Signals . | . . . Communications Jammed . | . . . Distress Signals . | . . . Times Spotted 16 | . 4 12 Peak Tracking Total 11 | . 2 11 Tactical Retreats . | . . . Traps | -11 -10 -10 ------- Run | Yrd Mat Sub Traps Triggered 1 | . 1 . Indirectly . | . . . Trap Hack Attempts . | . . . Triggered . | . . . Disarmed . | . . . Reprogrammed 6 | . 6 . Reused 1 | . 1 . Traps Extracted . | . . . Installed . | . . . Triggered 1 | . 1 . Machines | -11 -10 -10 ---------- Run | Yrd Mat Sub Machines Disabled . | . . . Max in Single Turn . | . . . Machines Repaired . | . . . Machines Dismantled . | . . . Machines Sabotaged . | . . . Overloaded Fab Kills . | . . . Hacking | -11 -10 -10 --------- Run | Yrd Mat Sub Machines Accessed 1 | . 1 . Terminals 1 | . 1 . Fabricators . | . . . Repair Stations . | . . . Recycling Units . | . . . Scanalyzers . | . . . Garrison Access . | . . . Total Hacks 4 | . 4 . Successful 3 | . 3 . Failed 1 | . 1 . Catastrophic . | . . . Database Lockouts . | . . . Manual . | . . . Terminals 4 | . 4 . Fabricators . | . . . Repair Stations . | . . . Recycling Units . | . . . Scanalyzers . | . . . Garrison Access . | . . . Terminal Hacks 3 | . 3 . Locate Traps 1 | . 1 . Reprogram Traps 1 | . 1 . Transport Status 1 | . 1 . Fabricator Hacks . | . . . Repair Station Hacks . | . . . Recycling Unit Hacks . | . . . Scanalyzer . | . . . Garrison Access Hacks . | . . . Unauthorized Hacks . | . . . Terminals . | . . . Fabricators . | . . . Repair Stations . | . . . Recycling Units . | . . . Scanalyzers . | . . . Garrison Access . | . . . Data Cores Recovered . | . . . Used . | . . . Hacking Detections 1 | . 1 . Full Trace Events . | . . . Feedback Events . | . . . Feedback Blocked . | . . . Robot Schematics Acquired . | . . . Robots Built . | . . . Authchips . | . . . Time . | . . . Total Robot Build Rating . | . . . Part Schematics Acquired . | . . . Parts Built . | . . . Authchips . | . . . Time . | . . . Total Part Build Rating . | . . . Parts Repaired . | . . . Time . | . . . Parts Recycled . | . . . Recycled Matter . | . . . Retrieved Matter . | . . . Retrieved Components . | . . . Parts Scanalyzed . | . . . Part Schematics Acquired . | . . . Parts Damaged . | . . . Bothacking | -11 -10 -10 ------------ Run | Yrd Mat Sub Used RIF Installer . | . . . Robots Hacked . | . . . Non-combat . | . . . Combat . | . . . Robot Hacks Applied . | . . . Relay Couplers Released . | . . . Fabnet Peak Effective % . | . . . Robots Rewired . | . . . Allies Hacked . | . . . Hacks Repelled . | . . . Allies | -11 -10 -10 -------- Run | Yrd Mat Sub Total Allies . | . . . Largest Group . | . . . Highest-Rated Group . | . . . Highest-Rated Ally . | . . . Total Orders . | . . . Ally Attacks . | . . . Total Damage . | . . . Kills . | . . . Allies Corrupted . | . . . Allies Melted . | . . . Intel | -11 -10 -10 ------- Run | Yrd Mat Sub Robot Analysis Total . | . . . Derelict Logs Recovered . | . . . Drone Launches . | . . . Drone Recoveries . | . . . Exploration | -11 -10 -10 ------------- Run | Yrd Mat Sub Turns Passed 532 | 92 366 74 Spaces Moved 368 | 78 242 48 Core 38 | 38 . . Treads . | . . . Legs . | . . . Wheels 330 | 40 242 48 Hover . | . . . Flight . | . . . Fastest Speed 50 | 50 90 135 Average Speed 115 | 71 125 139 Slowest Speed 200 | 95 135 200 Overloaded Moves . | . . . Propulsion Burnouts . | . . . Robots Hopped . | . . . Cave-ins Triggered . | . . . Exploration Rate (%) 12 | 4 27 6 Regions Visited 2 Branch Regions 1 Pre-discovered Areas . | . . . Known Exits Taken . | . . . Unknown Exits Taken 2 | 1 1 . Scrap Searched . | . . . Spaces Dug 6 | . 6 . Terrain Destroyed 17 | 5 6 6 Melee . | . . . Projectile . | . . . AOE 17 | 5 6 6 Terrain Rammed . | . . . Walls Destroyed . | . . . Machines Disabled . | . . . Actions | -11 -10 -10 --------- Run | Yrd Mat Sub Total 433 | 105 274 54 Wait . | . . . Move 366 | 77 241 48 Hop . | . . . Pick Up 21 | 12 8 1 Fast Attach . | . . . Attach 10 | 7 . 3 Detach 1 | . . 1 Swap 8 | 2 6 . Drop 2 | . 2 . Fire 24 | 7 16 1 Melee . | . . . Ram 1 | . 1 . Kick . | . . . Crush . | . . . Escape Stasis . | . . . Rewire . | . . . Trap . | . . . Miscellaneous . | . . . Route ------- -11/Scrapyard -10/Materials (discovered 2 exits: [*Mat] / [*Sub]) -10/Subcaves History --------- Turn | Location | Event 23 | -11/Scrapyard | Discovered new exit (range 13) 93 | -11/Scrapyard | Entered Materials 316 | -10/Materials | Build established: Mutant 341 | -10/Materials | Discovered new exit (range 10) 410 | -10/Materials | Discovered new exit (range 13) 459 | -10/Materials | Entered Subcaves 516 | -10/Subcaves | Ambushed by swarm of Subdwellers 516 | -10/Subcaves | Ambushed by Subdwellers from Twisted Machinery 516 | -10/Subcaves | Ambushed by Subdwellers from Twisted Machinery 516 | -10/Subcaves | Ambushed by Subdwellers from Twisted Machinery 516 | -10/Subcaves | Ambushed by Subdwellers from Twisted Machinery 516 | -10/Subcaves | Ambushed by Subdwellers from Twisted Machinery 524 | -10/Subcaves | Core integrity fell below 50% 532 | -10/Subcaves | Core integrity fell below 20% 533 | -10/Subcaves | Destroyed by SP-DMT(R) with Subdweller Machine Gun Last Messages --------------- Com. Wheel destroyed. W1-S5M(g): "Sorry we're late! Had another grouchy Sub to deal with. Who's the new fellow?" HV Slug penetrates 2I-PDG(R). 2I-PDG(R) destroyed. HV Slug penetrates Wall. OP-66H(R) destroyed. 08-BWT(h) destroyed. Structural Scanner destroyed. GA-ZZU(R) affixes Scrap Shield Fragment to Scrap Shield. SP-DMT(R) emerges from the Twisted Machinery. 6C-RQC(R) affixes Scrap Shield Fragment to Scrap Shield. O5-LQD(R) destroyed. Lgt. Ion Engine destroyed. Critical hit (Destroy). Lgt. Assault Rifle destroyed. Wheel destroyed. Map ----- +----------------------------------------------------+ | ?????????????????????????????????????????????????? | | ?????????????????????????????????????????????????? | | ?????????????????????????#####???????????????????? | | ?????????????????????????#####???????????????????? | | ?????????????????????????# ???????????????????? | | ?????????????????????????? ????????????????????? | | ?????????????????????????? ????????????????????? | | ?????????????????????????? "????????????????????? | | ?????????????????????????? "???????????????????? | | ????????????????????????## ##???????????????????? | | ????????????????????????## ###??????????????????? | | ????????????????????????# ###??????????????????? | | ????????????????????????# $### ????????????????? | | ????????????????????????## ### ????????????????? | | ???????????????????????? # % # ???????????????? | | ???????????????????????## ### ?? #??????????? | | ??????????????????????#### = " ##? ##??????????? | | ??????????????????????###[%%!" ## ###??????????? | | ??????????????????????##%%&!*= ### ###??????????? | | ??????????????????????## !*%= R ####?????????? | | ??????????????????????## !R R ###?????????? | | ????????????????? ??## R ###????????? | | ?????????????????## ??## ## ##????????? | | ?????????????????## ## R ;#####? ????????? | | ?????????????###### ## #######??? ?????????? | | ???????????? ##### ###@ ########?????????????? | | ??????????? ## #### ##?????????????? | | ??????????? gg### ##?????????????? | | ??????????? #####??????????? | | ??????????? g #######?????????? | | ??????????? ##; #### ###?????????? | | ???????????????###;; # ##### ###????????? | | ?????????????????# ; ## ## ###????????? | | ?????????????????# ; ;;;## ## ##????????? | | ?????????????????##; ;#### ##????????? | | ??????????????????## ??## ##????????? | | ??????????????????## ##### ##????????? | | ?????????????????? ## ###### ## ###???????? | | ?????????????????? #### ## ##### ##???????? | | ??????????????????????## ##### ##???????? | | ??????????????????????### ##????? ##???????? | | ??????????????????????### ##?????######???????? | | ??????????????????????### ###?????######???????? | | ??????????????????????### ###??????????????????? | | ??????????????????????## ###??????????????????? | | ??????????????????????## ###?????????????????? | | ??????????????????????## ##?????????????????? | | ??????????????????????### ###?????????????????? | | ??????????????????????#### ###?????????????????? | | ???????????????????????### ##??????????????????? | +----------------------------------------------------+ Best States ------------- Heat Dissipation 25 Energy Generation 10 Energy Capacity 250 Matter Stores 300 Matter Capacity 300 Sight Range 16 Terrain Scan Density 10 ECM Strength 1 Evasion (%) 50 Item Schematics ----------------- None Robot Schematics ------------------ None Fabricated ------------ Nothing Alien Tech Used ----------------- None Achievements -------------- None Challenges ------------ None Game ------ Seed MicroEnergyNullifier Manual? 0 Play Time 00:07:19 Cumulative 3.3 hours Start 2024.04.03 @ 08:00:51 End 2024.04.03 @ 08:07:29 Sessions 1 Manual Loads 0 Difficulty Rogue Special Mode None Game No. 8 Rogue 8 Adventurer 0 Explorer 0 Win Type - Total 0 Types 0/0/0/0/0/0/0/0/0 Lore% 3 Gallery% 10 Achievement% 10 Wizard Run 0 Options --------- Layout 1 ASCII 0 Keyboard 0 Movement Arrows Keybinds 0 Fullscreen 1 Font 24/Smallcaps Map View 50x35 Zoom Use 0% Tactical HUD 0 Map Filters NONE Filters NONE Steam 1 RUN: 24745bce-b93b-4d4d-afd6-5767e3d4d2b2